fUSD/lending_fUSD_20241020
["ID","MTS","AMOUNT","RATE_DAILY","PERIOD"]
[340555230,1729462242471,-500.0,0.00021256,2]
[340555231,1729462242480,-500.0,0.00021256,2]
[340555232,1729462242489,-500.0,0.00021256,2]
[340555233,1729462242502,-500.0,0.00021256,2]
[340555234,1729462242512,-500.0,0.00021256,2]
[340555235,1729462242521,-500.0,0.00021256,2]
[340555236,1729462242531,-500.0,0.00021256,2]
[340555237,1729462242540,-500.0,0.00021256,2]
[340555238,1729462242550,-500.0,0.00021256,2]
[340555239,1729462242559,-500.0,0.00021256,2]
[340555240,1729462242568,-500.0,0.00021256,2]
[340555241,1729462242578,-500.0,0.00021256,2]
[340555242,1729462242587,-500.0,0.00021256,2]
[340555244,1729462242596,-500.0,0.00021256,2]
[340555245,1729462242605,-500.0,0.00021256,2]
[340555247,1729462242617,-500.0,0.00021256,2]
[340555249,1729462242627,-500.0,0.00021256,2]
[340555251,1729462242637,-500.0,0.00021256,2]
[340555253,1729462242646,-500.0,0.00021256,2]
[340555255,1729462242656,-500.0,0.00021256,2]
[340555257,1729462242665,-500.0,0.00021256,2]
[340555258,1729462242674,-500.0,0.00021256,2]
[340555259,1729462242683,-500.0,0.00021256,2]
[340555263,1729462242831,-500.0,0.00021256,2]
[340555264,1729462242841,-500.0,0.00021256,2]
[340555265,1729462242851,-500.0,0.00021256,2]
[340555266,1729462242862,-500.0,0.00021256,2]
[340555268,1729462242871,-500.0,0.00021256,2]
[340555269,1729462242881,-500.0,0.00021256,2]
[340555272,1729462242891,-500.0,0.00021256,2]
[340555273,1729462242900,-500.0,0.00021256,2]
[340555274,1729462242910,-500.0,0.00021256,2]
[340555275,1729462242920,-500.0,0.00021256,2]
[340555276,1729462242930,-500.0,0.00021256,2]
[340555277,1729462242940,-500.0,0.00021256,2]
[340555278,1729462242950,-500.0,0.00021256,2]
[340555279,1729462242959,-500.0,0.00021256,2]
[340555280,1729462242969,-500.0,0.00021256,2]
[340555281,1729462242978,-500.0,0.00021256,2]
[340555282,1729462242988,-500.0,0.00021256,2]
[340555283,1729462242997,-500.0,0.00021256,2]
[340555284,1729462243007,-500.0,0.00021256,2]
[340555285,1729462243016,-500.0,0.00021256,2]
[340555286,1729462243025,-500.0,0.00021256,2]
[340555287,1729462243034,-500.0,0.00021256,2]
[340555288,1729462243043,-500.0,0.00021256,2]
[340555289,1729462243052,-500.0,0.00021256,2]
[340555290,1729462243062,-500.0,0.00021256,2]
[340555291,1729462243071,-500.0,0.00021256,2]
[340555292,1729462243080,-500.0,0.00021256,2]
[340555293,1729462243089,-500.0,0.00021256,2]
[340555294,1729462243098,-500.0,0.00021256,2]
[340555295,1729462243108,-500.0,0.00021256,2]
[340555296,1729462243117,-500.0,0.00021256,2]
[340555297,1729462243127,-500.0,0.00021256,2]
[340555298,1729462243136,-500.0,0.00021256,2]
[340555299,1729462243145,-500.0,0.00021256,2]
[340555300,1729462243155,-500.0,0.00021256,2]
[340555301,1729462243164,-500.0,0.00021256,2]
[340555302,1729462243173,-500.0,0.00021256,2]
[340555303,1729462243183,-500.0,0.00021256,2]
[340555304,1729462243192,-500.0,0.00021256,2]
[340555305,1729462243201,-500.0,0.00021256,2]
[340555306,1729462243211,-500.0,0.00021256,2]
[340555307,1729462243220,-500.0,0.00021256,2]
[340555308,1729462243229,-500.0,0.00021256,2]
[340555309,1729462243239,-500.0,0.00021256,2]
[340555310,1729462243249,-500.0,0.00021256,2]
[340555311,1729462243259,-500.0,0.00021256,2]
[340555312,1729462243268,-500.0,0.00021256,2]
[340555313,1729462243277,-500.0,0.00021256,2]
[340555314,1729462243286,-500.0,0.00021256,2]
[340555315,1729462243295,-500.0,0.00021256,2]
[340555316,1729462243306,-500.0,0.00021256,2]
[340555318,1729462243315,-500.0,0.00021256,2]
[340555319,1729462243325,-500.0,0.00021256,2]
[340555320,1729462243334,-500.0,0.00021256,2]
[340555321,1729462243344,-500.0,0.00021256,2]
[340555322,1729462243354,-500.0,0.00021256,2]
[340555323,1729462243364,-500.0,0.00021256,2]
[340555324,1729462243373,-500.0,0.00021256,2]
[340555325,1729462243384,-500.0,0.00021256,2]
[340555326,1729462243393,-500.0,0.00021256,2]
[340555327,1729462243403,-500.0,0.00021256,2]
[340555328,1729462243412,-500.0,0.00021256,2]
[340555329,1729462243421,-500.0,0.00021256,2]
[340555330,1729462243431,-500.0,0.00021256,2]
[340555331,1729462243440,-500.0,0.00021256,2]
[340555332,1729462243449,-500.0,0.00021256,2]
[340555333,1729462243459,-500.0,0.00021256,2]
[340555334,1729462243468,-500.0,0.00021256,2]
[340555335,1729462243478,-500.0,0.00021256,2]
[340555336,1729462243487,-500.0,0.00021256,2]
[340555337,1729462243497,-500.0,0.00021256,2]
[340555338,1729462243506,-500.0,0.00021256,2]
[340555339,1729462243515,-500.0,0.00021256,2]
[340555340,1729462243524,-500.0,0.00021256,2]
[340555341,1729462243533,-500.0,0.00021256,2]
[340555342,1729462243542,-500.0,0.00021256,2]
[340555343,1729462243551,-500.0,0.00021256,2]
[340555344,1729462243560,-500.0,0.00021256,2]
[340555345,1729462243569,-500.0,0.00021256,2]
[340555346,1729462243578,-500.0,0.00021256,2]
[340555347,1729462243587,-500.0,0.00021256,2]
[340555348,1729462243596,-500.0,0.00021256,2]
[340555349,1729462243606,-500.0,0.00021256,2]
[340555350,1729462243619,-159.39888698,0.00021256,2]
[340555351,1729462243634,-340.60111302,0.00021256,2]
[340555352,1729462243643,-72.2808172,0.00021256,2]
[340555353,1729462243655,-427.7191828,0.00021256,2]
[340555354,1729462243665,-500.0,0.00021256,2]
[340555355,1729462243674,-500.0,0.00021256,2]
[340555356,1729462243683,-500.0,0.00021256,2]
[340555357,1729462243692,-58.62574046,0.00021256,2]
[340555358,1729462243712,-441.37425954,0.00021256,2]
[340555359,1729462243720,-448.12574041,0.00021256,2]
[340555360,1729462243731,-51.87425959,0.00021256,2]
[340555361,1729462243741,-500.0,0.00021256,2]
[340555362,1729462243750,-446.68574041,0.00021256,2]
[340555363,1729462243761,-53.31425959,0.00021256,2]
[340555364,1729462243770,-346.76074041,0.00021256,2]
[340555365,1729462243794,-153.23925959,0.00021256,2]
[340555366,1729462243804,-500.0,0.00021256,2]
[340555367,1729462243813,-191.22914764,0.00021256,2]
[340555368,1729462243849,-308.77085236,0.00021256,2]
[340555369,1729462243858,-500.0,0.00021256,2]
[340555370,1729462243869,-500.0,0.00021256,2]
[340555371,1729462243879,-354.72934764,0.00021256,2]
[340555372,1729462243890,-145.27065236,0.00021256,2]
[340555373,1729462243899,-500.0,0.00021256,2]
[340555374,1729462243909,-500.0,0.00021256,2]
[340555375,1729462243918,-500.0,0.00021256,2]
[340555376,1729462243928,-500.0,0.00021256,2]
[340555377,1729462243937,-500.0,0.00021256,2]
[340555378,1729462243946,-500.0,0.00021256,2]
[340555379,1729462243956,-500.0,0.00021256,2]
[340555380,1729462243965,-500.0,0.00021256,2]
[340555381,1729462243975,-500.0,0.00021256,2]
[340555382,1729462243984,-500.0,0.00021256,2]
[340555383,1729462243994,-500.0,0.00021256,2]
[340555384,1729462244003,-500.0,0.00021256,2]
[340555385,1729462244013,-500.0,0.00021256,2]
[340555386,1729462244022,-178.65529108,0.00021256,2]
[340555387,1729462244034,-321.34470892,0.00021256,2]
[340555388,1729462244043,-500.0,0.00021256,2]
[340555389,1729462244053,-500.0,0.00021256,2]
[340555390,1729462244062,-500.0,0.00021256,2]
[340555391,1729462244072,-96.91987005,0.00021256,2]
[340555392,1729462244083,-403.08012995,0.00021256,2]
[340555393,1729462244092,-500.0,0.00021256,2]
[340555394,1729462244100,-500.0,0.00021256,2]
[340555395,1729462244111,-500.0,0.00021256,2]
[340555396,1729462244120,-500.0,0.00021256,2]
[340555397,1729462244129,-500.0,0.00021273,2]
[340555398,1729462244138,-500.0,0.00021273,2]
[340555399,1729462244147,-500.0,0.00021273,2]
[340555400,1729462244156,-150.0,0.00021273,2]
[340555401,1729462244165,-1194.46002334,0.00021408,2]
[340555402,1729462244174,-666.0,0.00021495,2]
[340555403,1729462244183,-640.0,0.00021495,2]
[340555404,1729462244193,-342.68895506,0.00021672,2]
[340555405,1729462244244,-851.77106828,0.00021672,2]
[340555406,1729462244254,-1092.29170251,0.00021898,3]
[340555407,1729462244265,-2266.00000008,0.00021898,3]
[340555408,1729462244276,-987.616816,0.00021898,3]
[340555409,1729462244287,-12380.84189991,0.00021898,3]
[340555410,1729462244296,-2164.46082144,0.00021898,3]
[340555411,1729462244306,-375.0,0.00021917,2]
[340555412,1729462244316,-152.28,0.00021918,2]
[340555413,1729462244326,-2043.39,0.00021918,2]
[340555414,1729462244335,-1194.46002334,0.00021935,2]
[340555415,1729462244344,-250.0,0.00021958,2]
[340555416,1729462244354,-550.0,0.00022,2]
[340555417,1729462244366,-175.0,0.00022,2]
[340555418,1729462244375,-318.68,0.0002207,7]
[340555419,1729462244385,-4357.53391314,0.00022161,2]
[340555420,1729462244395,-1098.46,0.00022167,2]
[340555421,1729462244404,-215.73203111,0.00022178,2]
[340555422,1729462244414,-1194.46002334,0.00022198,2]
[340555423,1729462244424,-314.992,0.00022259,2]
[340555424,1729462244433,-1194.46002334,0.00022461,2]
[340555425,1729462244443,-462.51275572,0.00022642,2]
[340555426,1729462244453,-350.0,0.00022642,2]
[340555427,1729462244463,-378.45,0.00022669,2]
[340555428,1729462244473,-150.0,0.00022669,2]
[340555429,1729462244482,-305.71,0.00022669,2]
[340555430,1729462244491,-590.59,0.00022669,2]
[340555431,1729462244501,-150.98,0.00022669,2]
[340555432,1729462244511,-429.92,0.00022669,2]
[340555433,1729462244519,-186.67,0.00022669,2]
[340555434,1729462244528,-425.84,0.00022669,2]
[340555435,1729462244537,-1194.46002334,0.00022725,2]
[340555436,1729462244547,-152.28,0.00022831,2]
[340555437,1729462244555,-167.912077,0.0002289,2]
[340555438,1729462244565,-4328.92164288,0.0002296,4]
[340555439,1729462244574,-8657.84328576,0.0002297,4]
[340555440,1729462244583,-6493.38246432,0.0002298,4]
[340555441,1729462244592,-1194.46002334,0.00022988,2]
[340555442,1729462244603,-151.0,0.0002299,7]
[340555443,1729462244616,-151.0,0.0002299,7]
[340555444,1729462244627,-12986.7649286,0.0002299,4]
[340555445,1729462244638,-500.0,0.00022999,2]
[340555446,1729462244648,-38086.35248134,0.00023,2]
[340555447,1729462244678,-13471.89695095,0.00023,2]
[340555448,1729462244690,-11809.42168032,0.00023,2]
[340555449,1729462244706,-361.46637627,0.00023,2]
[340555450,1729462244719,-621.51461131,0.00023,2]
[340555451,1729462244731,-3073.72889359,0.00023,2]
[340555452,1729462244743,-21826.22156443,0.00023,2]
[340555453,1729462244755,-478.75263346,0.00023,2]
[340555454,1729462244778,-379.485462,0.00023,2]
[340555455,1729462244930,-304.33735203,0.00023,2]
[340555456,1729462244943,-701.66503495,0.00023,2]
[340555457,1729462244955,-1787.55805162,0.00023,2]
[340555458,1729462244967,-722.19529931,0.00023,2]
[340555459,1729462244979,-10682.73555237,0.00023,2]
[340555460,1729462244991,-476.45777715,0.00023,2]
[340555461,1729462245004,-401.11699282,0.00023,2]
[340555462,1729462245020,-1064.43459562,0.00023,2]
[340555463,1729462245032,-3448.071196,0.00023,2]
[340555469,1729462245941,-1084.0,0.00014388,2]
[340555470,1729462245951,-1084.0,0.00017388,2]
[340555471,1729462245960,-234.39044391,0.00019,2]
[340555472,1729462245972,-268.64913209,0.00019,2]
[340555473,1729462245981,-500.0,0.0002,2]
[340555474,1729462245990,-1084.0,0.00020388,2]
[340555475,1729462245999,-429.92,0.00022669,2]
[340555476,1729462246008,-1620.53229371,0.00023,2]
[340555477,1729462246040,-521.0902488,0.00023,2]
[340555478,1729462246107,-4252.68495195,0.00023,2]
[340555479,1729462246118,-956.83,0.00023,14]
[340555480,1729462246127,-151.0,0.00023,7]
[340555481,1729462246136,-190.801914,0.00023,7]
[340555482,1729462246146,-151.0,0.00023,7]
[340555483,1729462246156,-151.0,0.00023,7]
[340555484,1729462246166,-151.0,0.00023,7]
[340555485,1729462246176,-151.904225,0.00023,7]
[340555486,1729462246185,-151.904225,0.00023,7]
[340555487,1729462246194,-151.0,0.00023,7]
[340555488,1729462246204,-152.95631,0.00023,7]
[340555489,1729462246214,-154.273454,0.00023,7]
[340555490,1729462246223,-343.404441,0.00023,7]
[340555491,1729462246232,-343.404441,0.00023,7]
[340555492,1729462246241,-175.0,0.00023014,2]
[340555493,1729462246250,-167.91207699,0.00023045,2]
[340555494,1729462246259,-443.09284144,0.000231,2]
[340555495,1729462246268,-167.91207699,0.000232,2]
[340555496,1729462246277,-166.05145129,0.000232,2]
[340555497,1729462246286,-200.47863496,0.000232,2]
[340555498,1729462246295,-215.73203111,0.000232,2]
[340555499,1729462246304,-1112.9713629,0.000232,2]
[340555500,1729462246336,-3244.56255024,0.000232,2]
[340555501,1729462246345,-14672.19045925,0.000232,2]
[340555502,1729462246356,-3634.38941428,0.000232,2]
[340555503,1729462246368,-643.74868228,0.000232,2]
[340555504,1729462246377,-151.0,0.00023234,7]
[340555505,1729462246386,-156.025902,0.00023234,7]
[340555506,1729462246395,-151.0,0.00023234,7]
[340555507,1729462246404,-156.025902,0.00023234,7]
[340555508,1729462246413,-151.0,0.00023234,7]
[340555509,1729462246422,-151.0,0.00023234,7]
[340555510,1729462246431,-151.0,0.00023234,7]
[340555511,1729462246440,-153.370121,0.00023234,7]
[340555512,1729462246450,-835.954,0.00023238,2]
[340555513,1729462246459,-1618.113,0.00023238,2]
[340555514,1729462246468,-666.24,0.00023238,2]
[340555515,1729462246477,-1194.46002334,0.00023251,2]
[340555516,1729462246486,-169.60500023,0.00023289,2]
[340555517,1729462246494,-400.0,0.00023299,2]
[340555518,1729462246503,-151.0,0.00023299,7]
[340555519,1729462246512,-151.0,0.00023299,7]
[340555520,1729462246521,-151.0,0.00023299,7]
[340555521,1729462246531,-151.0,0.00023299,7]
[340555522,1729462246542,-151.0,0.00023299,7]
[340555523,1729462246551,-151.0,0.00023299,7]
[340555524,1729462246560,-262.102294,0.00023299,7]
[340555525,1729462246570,-8629.09915997,0.000233,16]
[340555526,1729462246581,-31336.31523082,0.000233,16]
[340555527,1729462246592,-5700.89523965,0.000233,16]
[340555528,1729462246604,-581.82394754,0.000233,16]
[340555529,1729462246618,-5151.06035385,0.000233,16]
[340555530,1729462246630,-5028.66000001,0.000233,16]
[340555531,1729462246642,-28262.7271583,0.000233,16]
[340555532,1729462246654,-8679.59506081,0.000233,16]
[340555533,1729462246665,-400.738929,0.000233,16]
[340555534,1729462246677,-610.20934057,0.000233,16]
[340555535,1729462246689,-5645.78035599,0.000233,16]
[340555536,1729462246704,-1605.35180376,0.000233,16]
[340555537,1729462246717,-31782.72552,0.000233,16]
[340555538,1729462246785,-6013.58445279,0.000233,16]
[340555539,1729462246798,-2026.45879286,0.000233,16]
[340555540,1729462246810,-766.69689252,0.000233,16]
[340555541,1729462246825,-374.53481755,0.000233,16]
[340555542,1729462246838,-1598.31428799,0.000233,16]
[340555543,1729462246851,-735.896,0.000233,16]
[340555544,1729462246865,-445.70504057,0.000233,16]
[340555545,1729462246876,-7483.98605945,0.000233,16]
[340555546,1729462246887,-1872.08172289,0.000233,16]
[340555547,1729462247044,-1774.19145063,0.000233,16]
[340555548,1729462247056,-741.56502725,0.000233,16]
[340555549,1729462247068,-1323.34911343,0.000233,16]
[340555550,1729462247079,-1112.32159237,0.000233,16]
[340555551,1729462247090,-369.04840763,0.000233,16]
[340555552,1729462247102,-252.50250201,0.000233,16]
[340555553,1729462247115,-424.3875,0.000233,16]
[340555554,1729462247127,-1202.82442801,0.000233,16]
[340555555,1729462247450,-262.102294,0.00023299,7]
[340555556,1729462247459,-4800.52060945,0.000233,16]
[340555557,1729462247471,-432.00902886,0.000233,16]
[340555558,1729462247490,-12304.74337468,0.000233,16]
[340555559,1729462247502,-17222.0,0.000233,16]
[340555560,1729462247512,-5999.99999953,0.000233,16]
[340555561,1729462247569,-1725.8,0.000233,16]
[340555562,1729462247580,-2194.15517873,0.000233,16]
[340555563,1729462247592,-1468.26898601,0.000233,16]
[340555564,1729462247603,-6880.5,0.000233,16]
[340555565,1729462288097,250.0,0.0001,2]
[340555566,1729462787508,161.99,0.00010959,2]
[340555567,1729463108449,717112.75465663,0.00011,2]
[340555569,1729463284719,150.0,0.00010959,2]
[340555570,1729463284756,12.87,0.00010959,2]
[340555571,1729463324893,151.15142306,0.00027,120]
[340555582,1729463431988,-150.0,0.00011689,2]
[340555583,1729463431997,-150.0,0.000117,2]
[340555584,1729463432007,-149.48691938,0.00012,2]
[340555585,1729463432018,-150.51308062,0.00012,2]
[340555586,1729463432027,-350.0,0.00014,2]
[340555587,1729463432037,-1138.88691958,0.00014775,2]
[340555588,1729463432052,-1238.62357742,0.00014775,2]
[340555589,1729463432067,-300.0,0.00014775,2]
[340555590,1729463432142,-621.548406,0.00014775,2]
[340555591,1729463432154,-522.48864831,0.0001485,2]
[340555592,1729463432168,-496.68035893,0.0001485,2]
[340555593,1729463432177,-203.31964107,0.00015,2]
[340555594,1729463432189,-306.68541271,0.00015,2]
[340555595,1729463432199,-601.1937,0.00015367,2]
[340555596,1729463432208,-1084.0,0.00015468,2]
[340555597,1729463432217,-150.0,0.00015468,2]
[340555598,1729463432226,-5876.0,0.00015468,2]
[340555599,1729463432235,-400.0,0.00016,2]
[340555600,1729463432245,-150.99,0.00016438,2]
[340555601,1729463432254,-7360.8,0.00016438,2]
[340555602,1729463432263,-186.81,0.00016438,2]
[340555603,1729463432272,-499.99,0.0001726,2]
[340555604,1729463432282,-687.43088729,0.000174,2]
[340555605,1729463432297,-2983.56911271,0.000174,2]
[340555606,1729463432307,-450.0,0.00018,2]
[340555607,1729463432316,-251.993,0.00018,2]
[340555608,1729463432325,-55.87323741,0.00018468,2]
[340555609,1729463432336,-209.41676259,0.00018468,2]
[340555610,1729463432346,-175.37,0.000187,7]
[340555611,1729463432355,-841.48,0.00019486,2]
[340555612,1729463432364,-500.0,0.0002,2]
[340555613,1729463432374,-200.0,0.00021135,2]
[340555614,1729463432383,-250.0,0.00021302,2]
[340555615,1729463432392,-250.0,0.00021313,2]
[340555616,1729463432401,-1000.0,0.00021314,2]
[340555617,1729463432414,-152.28,0.00021341,2]
[340555618,1729463432423,-279.5,0.00021411,2]
[340555619,1729463432434,-250.0,0.00021437,2]
[340555620,1729463432444,-3241.91443304,0.00021585,2]
[340555621,1729463432470,-1242.74556696,0.00021585,2]
[340555622,1729463432481,-841.48,0.0002175,2]
[340555623,1729463432490,-149.34373745,0.00021847,2]
[340555624,1729463432515,-280.57626255,0.00021847,2]
[340555625,1729463432524,-429.32,0.00021847,2]
[340555626,1729463432534,-1702.82,0.00021918,2]
[340555627,1729463432544,-550.0,0.00022,2]
[340555628,1729463432553,-172.59,0.00022121,2]
[340555629,1729463432563,-200.0,0.000222,8]
[340555630,1729463432572,-150.0,0.00022219,2]
[340555631,1729463432581,-150.0,0.00022219,2]
[340555632,1729463432591,-429.92,0.00022219,2]
[340555633,1729463432600,-500.0,0.000223,8]
[340555634,1729463432610,-167.01,0.00022346,2]
[340555635,1729463432620,-800.0,0.000224,8]
[340555636,1729463432629,-429.92,0.00022478,2]
[340555637,1729463432638,-1000.0,0.000225,8]
[340555638,1729463432648,-1300.0,0.000226,8]
[340555640,1729463432661,-200.0,0.000227,8]
[340555642,1729463432671,-200.0,0.000228,8]
[340555644,1729463432682,-200.0,0.000229,8]
[340555646,1729463432692,-75.01925213,0.00022999,2]
[340555655,1729463438023,-299.98074787,0.00022999,2]
[340555656,1729463438034,-150.0,0.00023026,2]
[340555657,1729463438044,-150.0,0.00023027,2]
[340555658,1729463438054,-150.0,0.00023028,2]
[340555659,1729463438064,-150.0,0.00023034,2]
[340555660,1729463438073,-150.0,0.00023035,2]
[340555661,1729463438083,-150.0,0.0002304,2]
[340555662,1729463438093,-150.0,0.00023045,2]
[340555663,1729463438103,-1500.0,0.00023046,2]
[340555664,1729463438112,-150.0,0.0002305,2]
[340555665,1729463438122,-150.0,0.00023052,2]
[340555666,1729463438131,-1500.0,0.00023056,2]
[340555667,1729463438140,-1500.0,0.0002306,2]
[340555668,1729463438150,-150.0,0.0002307,2]
[340555669,1729463438159,-150.0,0.00023071,2]
[340555670,1729463438170,-150.0,0.00023074,2]
[340555671,1729463438180,-150.0,0.00023078,2]
[340555672,1729463438189,-150.0,0.0002308,2]
[340555673,1729463438198,-150.0,0.00023088,2]
[340555674,1729463438207,-150.0,0.0002309,2]
[340555675,1729463438217,-300.0,0.00023093,2]
[340555676,1729463438227,-150.0,0.00023095,2]
[340555677,1729463438236,-150.0,0.00023099,2]
[340555678,1729463438245,-5032.16679231,0.000231,2]
[340555679,1729463438255,-247.8203,0.000231,2]
[340555680,1729463438264,-150.0,0.00023103,2]
[340555681,1729463438274,-150.0,0.00023104,2]
[340555682,1729463438284,-150.0,0.00023106,2]
[340555683,1729463438293,-150.0,0.00023113,2]
[340555684,1729463438302,-150.0,0.00023124,2]
[340555685,1729463438312,-258.05645025,0.00023127,2]
[340555686,1729463438321,-732.864,0.00023127,2]
[340555687,1729463438332,-150.0,0.00023129,2]
[340555688,1729463438341,-1500.0,0.0002313,2]
[340555689,1729463438351,-150.0,0.00023135,2]
[340555690,1729463438361,-150.0,0.00023137,2]
[340555691,1729463438370,-150.0,0.00023139,2]
[340555692,1729463438380,-150.0,0.00023141,2]
[340555693,1729463438389,-5800.0,0.00023149,2]
[340555694,1729463438399,-150.0,0.00023157,2]
[340555695,1729463438408,-5800.0,0.00023158,2]
[340555696,1729463438420,-150.0,0.00023159,2]
[340555697,1729463438430,-150.0,0.0002316,2]
[340555698,1729463438444,-150.0,0.00023162,2]
[340555699,1729463438454,-150.0,0.00023166,2]
[340555700,1729463438463,-150.0,0.00023166,2]
[340555701,1729463438473,-5800.0,0.00023166,2]
[340555702,1729463438482,-150.0,0.00023168,2]
[340555703,1729463438492,-5800.0,0.00023175,2]
[340555704,1729463438501,-150.0,0.00023182,2]
[340555705,1729463438511,-500.0,0.00023182,2]
[340555706,1729463438521,-5800.0,0.00023183,2]
[340555707,1729463438531,-1035.20486818,0.00023189,2]
[340555708,1729463438541,-477.78400942,0.0002319,2]
[340555709,1729463438551,-1035.20486817,0.0002319,2]
[340555710,1729463438560,-500.0,0.00023191,2]
[340555711,1729463438569,-1035.20486817,0.00023191,2]
[340555712,1729463438579,-5800.0,0.00023192,2]
[340555713,1729463438588,-1035.20486817,0.00023193,2]
[340555714,1729463438598,-1035.20486817,0.00023194,2]
[340555715,1729463438608,-150.0,0.00023194,2]
[340555716,1729463438617,-1035.20486817,0.00023195,2]
[340555717,1729463438627,-1035.20486817,0.00023196,2]
[340555718,1729463438636,-1500.0,0.00023197,2]
[340555719,1729463438646,-1035.20486817,0.00023198,2]
[340555721,1729463438656,-150.0,0.00023198,2]
[340555723,1729463438667,-1035.20486817,0.00023199,2]
[340555725,1729463438677,-196.83952937,0.00023199,2]
[340555727,1729463438686,-176.14466607,0.00023199,2]
[340555728,1729463438696,-500.0,0.000232,2]
[340555729,1729463438706,-5800.0,0.000232,2]
[340555730,1729463438715,-8500.0,0.000232,2]
[340555731,1729463438724,-1035.20486817,0.000232,2]
[340555732,1729463438734,-2646.81113072,0.000232,2]
[340555733,1729463438743,-186.0174522,0.000232,2]
[340555734,1729463438752,-564.04929966,0.000232,2]
[340555735,1729463438762,-150.0,0.00023201,2]
[340555736,1729463438772,-150.0,0.00023202,2]
[340555737,1729463438781,-150.0,0.00023203,2]
[340555738,1729463438791,-150.0,0.00023215,2]
[340555739,1729463438801,-150.0,0.00023215,2]
[340555740,1729463438810,-150.0,0.00023215,2]
[340555741,1729463438819,-1500.0,0.00023219,2]
[340555742,1729463438829,-150.0,0.0002322,2]
[340555743,1729463438838,-150.0,0.00023229,2]
[340555744,1729463438847,-150.0,0.00023244,2]
[340555745,1729463438857,-150.0,0.00023246,2]
[340555746,1729463438866,-1500.0,0.0002326,2]
[340555747,1729463438876,-676.0,0.00023263,2]
[340555748,1729463438885,-150.0,0.00023266,2]
[340555749,1729463438895,-198.21134182,0.00023273,2]
[340555750,1729463438904,-150.0,0.00023274,2]
[340555751,1729463438915,-150.0,0.00023277,2]
[340555752,1729463438925,-150.0,0.00023279,2]
[340555753,1729463438935,-150.0,0.00023279,2]
[340555754,1729463438944,-76434.3130395,0.0002328,4]
[340555755,1729463438954,-15286.8626079,0.0002328,4]
[340555756,1729463438964,-151.37,0.00023289,2]
[340555757,1729463438973,-151.37,0.00023289,2]
[340555758,1729463438983,-151.37,0.00023289,2]
[340555759,1729463438992,-151.37,0.00023289,2]
[340555760,1729463439001,-151.37,0.00023289,2]
[340555761,1729463439011,-151.37,0.00023289,2]
[340555762,1729463439020,-151.37,0.00023289,2]
[340555763,1729463439030,-151.37,0.00023289,2]
[340555764,1729463439040,-151.37,0.00023289,2]
[340555765,1729463439049,-151.37,0.00023289,2]
[340555766,1729463439058,-151.37,0.00023289,2]
[340555767,1729463439068,-151.37,0.00023289,2]
[340555768,1729463439078,-214016.07651,0.00023289,4]
[340555769,1729463439088,-151.37,0.0002329,2]
[340555770,1729463439098,-151.37,0.0002329,2]
[340555771,1729463439108,-151.37,0.0002329,2]
[340555772,1729463439117,-151.37,0.0002329,2]
[340555773,1729463439127,-151.37,0.0002329,2]
[340555774,1729463439137,-151.37,0.0002329,2]
[340555775,1729463439147,-151.37,0.0002329,2]